Cogmind - Beta 11 @@@ ROGUE MODE // 2022.04.03 @ 09:43:34 Player: cptwinky Result: Self-destructed Performance ------------- Evolutions (2) 1000 Regions Visited (3) 600 Robots Destroyed (81) 405 Value Destroyed (2312) 2312 Prototype IDs (5) 100 Alien Tech Used (0) 0 Bonus (2650) 2650 TOTAL SCORE: 7067 Bonus ------- Super Gauntlet 2573 High Alert Combat Kills 77 Cogmind --------- Core Integrity 409/550 Matter 256/300 Energy 265/265 System Corruption 0% Temperature Cool (0) Movement Treading (155) Location -8/Materials Parts ------- > --- POWER (1) -------- Reinforced Ion Engine > --- PROPULSION (3) --- Light Treads Light Treads Advanced Treads > --- UTILITY (5) ------ High-capacity Storage Unit Improved Targeting Computer Improved Targeting Computer Reflective Plating > --- WEAPON (2) ------- High-powered Shotgun High-powered Shotgun > --- INVENTORY (20) --- Heavy Ion Engine Advanced Treads Advanced Treads Armored Wheel Armored Wheel Cargo Storage Unit Hacking Suite Long-range Tractor Beam Light EM Pulse Cannon Advanced Beam Cannon Advanced Beam Cannon Advanced Beam Cannon Advanced Beam Cannon Advanced Beam Cannon Advanced Beam Cannon Rocket Launcher Mini Grenade Launcher Scythe Peak State ------------ > --- POWER ------------ Reinforced Ion Engine > --- PROPULSION ------- Light Treads Improved Treads Advanced Treads > --- UTILITY ---------- High-capacity Storage Unit Improved Targeting Computer Improved Targeting Computer Improved Light Armor Plating Reflective Plating > --- WEAPON ----------- High-powered Shotgun High-powered Shotgun > --- INVENTORY -------- Reinforced Ion Engine Heavy Ion Engine Advanced Treads Advanced Treads Armored Wheel Armored Wheel Cargo Storage Unit Propulsion Shielding Reflective Plating Hacking Suite Improved Medium Laser Improved Medium Laser Light EM Pulse Cannon Advanced Beam Cannon Advanced Beam Cannon Advanced Beam Cannon Minigun High-powered Shotgun High-powered Shotgun [Rating: 30] Favorites ----------- Power Reinforced Ion Engine Engine Reinforced Ion Engine Propulsion Light Treads Treads Light Treads Wheel Wheel Utility Improved Targeting Computer Storage High-capacity Storage Unit Processor Improved Targeting Computer Hackware Hacking Suite Protection Reflective Plating Weapon High-powered Shotgun Energy Gun Medium Laser Energy Cannon Advanced Beam Cannon Ballistic Gun High-powered Shotgun Launcher Grenade Launcher Slashing Weapon Scythe Build | -11 -10 -9 -8 ------- Run | Scr Mat Mat Mat Slots Evolved 4 | . . 2 2 Power . | . . . . Propulsion 1 | . . . 1 Utility 3 | . . 2 1 Weapon . | . . . . Parts Attached 58 | 6 5 14 33 Power 5 | 1 1 2 1 Engine 5 | 1 1 2 1 Core . | . . . . Reactor . | . . . . Propulsion 12 | 2 . 3 7 Treads 10 | 2 . 1 7 Leg . | . . . . Wheel 2 | . . 2 . Hover . | . . . . Flight . | . . . . Utility 12 | 1 2 3 6 Device . | . . . . Storage 3 | 1 1 1 . Processor 2 | . . 2 . Hackware 1 | . . . 1 Protection 6 | . 1 . 5 Artifact . | . . . . Weapon 29 | 2 2 6 19 Energy Gun 3 | 1 . 1 1 Energy Cannon 1 | . 1 . . Ballistic Gun 18 | 1 1 4 12 Ballistic Cannon . | . . . . Launcher 5 | . . 1 4 Special Weapon . | . . . . Impact Weapon . | . . . . Slashing Weapon 2 | . . . 2 Piercing Weapon . | . . . . Special Melee Weapon . | . . . . Unidentified Prototypes 3 | . 1 2 . Parts Lost 4 | . . . 4 Power 1 | . . . 1 Propulsion 1 | . . . 1 Utility 1 | . . . 1 Weapon 1 | . . . 1 Highest Loss Streak 2 | . . . 2 To Critical Strikes . | . . . . Average Slot Usage (%) 99 | . 96 100 99 Engine 9 | . 14 11 8 Treads 22 | . 28 12 25 Wheel 3 | . . 9 1 Storage 10 | . 14 11 9 Processor 16 | . . 22 18 Protection 14 | . 10 11 17 Energy Gun 2 | . 14 5 . Ballistic Gun 16 | . 13 16 17 Naked Turns . | . . . . Heaviest Build 63 | 11 37 57 63 Greatest Support 65 | 40 40 40 65 Greatest Overweight (x) 5 | . . 5 3 Average Overweight (x) 1 | . . 4 . Largest Inventory Capacity 20 | 8 15 20 20 Average Capacity 18 | 6 13 19 20 Most Carried 20 | 5 15 20 20 Average Carried 17 | 2 8 18 19 Final Capacity 20 | 8 15 20 20 Final Carried 20 | 5 15 20 19 Class Distribution -------------------- 100% | Mutant Dominant Class ---------------- Mutant | -10/Materials Mutant | -9/Materials Mutant | -8/Materials Resources | -11 -10 -9 -8 ----------- Run | Scr Mat Mat Mat Matter Collected 1832 | 216 77 479 1060 Remotely . | . . . . Salvage Created 2887 | . 241 906 1740 Parts 136 | . 9 41 86 Haulers Intercepted 9 | . 1 2 6 Recyclers Shooed 1 | . . . 1 Parts Field Recycled . | . . . . Retrieved Matter . | . . . . Parts Self-Destructed . | . . . . Prevented . | . . . . Kills | -11 -10 -9 -8 ------- Run | Scr Mat Mat Mat Combat Hostiles Destroyed 58 | . 4 19 35 Guns 47 | . 4 15 28 AOE 11 | . . 4 7 Classes Destroyed 11 | . 4 4 3 Worker 3 | . 1 1 1 Hauler 9 | . 1 2 6 Recycler 6 | . . 4 2 Operator 1 | . . 1 . Watcher 6 | . 1 2 3 Swarmer 10 | . . 7 3 Grunt 35 | . 4 8 23 Brawler 1 | . . . 1 Duelist 1 | . . . 1 Sentry 10 | . . 4 6 Hunter 1 | . . . 1 Best Kill Streak 6 | . 3 4 6 Combat Bots Only 4 | . 3 4 4 Max Kills in Single Turn 3 | . 1 2 3 Gunslinging . | . . . . Exploded 3 | . . 1 3 Melee . | . . . . Uniques/NPCs Destroyed . | . . . . Combat | -11 -10 -9 -8 -------- Run | Scr Mat Mat Mat Damage Taken 2062 | . 63 436 1563 Core 255 | . 20 94 141 Absorbed by Shields . | . . . . Redirected to Shielding 58 | . 9 19 30 Regen/Repaired (Parts) 211 | . . . 211 Core Remaining (%) 89 | 100 92 76 . Volleys Fired 162 | . 13 52 97 Largest 2 | . 2 2 2 Hottest 70 | . 70 70 56 Shots Fired 312 | . 26 100 186 Gun 301 | . 26 96 179 Cannon . | . . . . Launcher 11 | . . 4 7 Special . | . . . . Kinetic 268 | . 13 77 178 Thermal 33 | . 13 19 1 Explosive 11 | . . 4 7 Electromagnetic . | . . . . Robot Hit Streak 18 | . 18 14 16 Robot Miss Streak 6 | . 1 3 6 Penetration Max . | . . . . Secondary Targets 3 | . . 2 1 Max Gunslinging Chain 1 | . . 1 1 Shots Hit Robots 254 | . 22 79 153 Core Hits 155 | . 12 41 102 Critical Kills 1 | . . . 1 Critical Parts Destroyed 4 | . . 2 2 Critical Strikes 14 | . 3 7 4 Burn 9 | . 3 5 1 Destroy 5 | . . 2 3 Melee Attacks 9 | . . . 9 Impact . | . . . . Slashing 9 | . . . 9 Piercing . | . . . . Sneak Attacks . | . . . . Combat Hostiles . | . . . . Follow-up Attacks . | . . . . Damage Inflicted 5814 | . 260 1601 3953 Guns 4854 | . 238 1326 3290 Cannons . | . . . . Explosions 925 | . . 275 650 Melee . | . . . . Ramming 35 | . 22 . 13 Kinetic 4474 | . 101 1101 3272 Thermal 380 | . 137 225 18 Explosive 925 | . . 275 650 Electromagnetic . | . . . . Impact . | . . . . Slashing . | . . . . Piercing . | . . . . Highest Corruption . | . . . . Average Corruption . | . . . . Corruption Purged . | . . . . Corruption Blocked . | . . . . Overload Shots . | . . . . Overflow Damage 5 | . . 4 1 Projectiles . | . . . . Explosions 5 | . . 4 1 Melee . | . . . . Knockbacks . | . . . . Impact . | . . . . Kinetic . | . . . . Secondary . | . . . . Self-Inflicted Damage 114 | . . 16 98 Shots 6 | . . 2 4 Rammed 5 | . 2 . 3 Targets Rammed 6 | . 3 . 3 Kicked . | . . . . Crushed 1 | . 1 . . Highest Temperature 150 | . 150 66 79 Average Temperature 26 | . 56 20 21 Received Heat Transfer 1029 | . 36 129 864 Siege Activations . | . . . . Robots Corrupted . | . . . . Combat Hostiles . | . . . . Parts Fried . | . . . . Impact Corruptions . | . . . . Robots Melted . | . . . . Combat Hostiles . | . . . . Parts Melted 3 | . 1 2 . Heat Transferred 1739 | . 629 999 111 Parts Sabotaged . | . . . . Parts Stolen . | . . . . Parts Stripped . | . . . . Power Chain Reactions . | . . . . Missiles Intercepted . | . . . . Alert | -11 -10 -9 -8 ------- Run | Scr Mat Mat Mat Peak Influence 576 | . 137 409 576 Initial 48 | . . . 48 Average 232 | . 50 239 268 Maximum Alert Level 2 | . . 2 2 Low Security (%) 53 | 100 100 39 49 Level 1 29 | . . 59 23 Level 2 17 | . . . 26 Level 3 . | . . . . Level 4 . | . . . . Level 5 . | . . . . High Security . | . . . . Max Security . | . . . . Squads Dispatched 14 | . 1 4 9 Investigation 6 | . 1 2 3 Extermination . | . . . . Reinforcement 6 | . . 2 4 Assault 1 | . . . 1 Garrison 1 | . . . 1 Intercept . | . . . . Searches Triggered . | . . . . Construction Impeded . | . . . . Haulers Reinforced . | . . . . Active Scanning Responses . | . . . . Cargo Convoy Interrupts . | . . . . Stealth | -11 -10 -9 -8 --------- Run | Scr Mat Mat Mat Distress Signals 2 | . . . 2 Communications Jammed . | . . . . Distress Signals . | . . . . Times Spotted 102 | . 5 29 68 Peak Tracking Total 7 | . 4 6 7 Tactical Retreats 2 | . . . 2 Traps | -11 -10 -9 -8 ------- Run | Scr Mat Mat Mat Traps Triggered 1 | . 1 . . Indirectly . | . . . . Trap Hack Attempts . | . . . . Triggered . | . . . . Disarmed . | . . . . Reprogrammed . | . . . . Reused . | . . . . Traps Extracted . | . . . . Installed . | . . . . Triggered . | . . . . Machines | -11 -10 -9 -8 ---------- Run | Scr Mat Mat Mat Machines Disabled 3 | . . 1 2 Max in Single Turn 1 | . . 1 1 Garrison Access 1 | . . . 1 Machines Sabotaged . | . . . . Garrisons Compromised . | . . . . Overloaded Fab Kills . | . . . . Hacking | -11 -10 -9 -8 --------- Run | Scr Mat Mat Mat Machines Accessed 19 | . 3 5 11 Terminals 12 | . 2 3 7 Fabricators . | . . . . Repair Stations 2 | . . . 2 Recycling Units 4 | . 1 1 2 Scanalyzers 1 | . . 1 . Garrison Access . | . . . . Total Hacks 71 | . 14 19 38 Successful 31 | . 4 10 17 Failed 39 | . 10 9 20 Catastrophic 6 | . . 2 4 Database Lockouts 1 | . . . 1 Manual 45 | . 11 12 22 Terminals 47 | . 10 12 25 Fabricators . | . . . . Repair Stations 6 | . . . 6 Recycling Units 14 | . 4 3 7 Scanalyzers 4 | . . 4 . Garrison Access . | . . . . Terminal Hacks 15 | . 3 5 7 Robot Schematic 1 | . 1 . . Robot Analysis 5 | . 2 1 2 Prototype ID Bank 1 | . . 1 . Unreport Threat 4 | . . 2 2 Locate Traps 1 | . . . 1 Recall Investigation 1 | . . . 1 Zone Layout 2 | . . 1 1 Fabricator Hacks . | . . . . Repair Station Hacks 6 | . . . 6 Scan Component 3 | . . . 3 Repair 3 | . . . 3 Recycling Unit Hacks 3 | . 1 1 1 Retrieve Components 3 | . 1 1 1 Scanalyzer 2 | . . 2 . Insert Component 1 | . . 1 . Analyze 1 | . . 1 . Garrison Access Hacks . | . . . . Unauthorized Hacks 5 | . . 2 3 Terminals 2 | . . . 2 Track 1 | . . . 1 Botnet 1 | . . . 1 Fabricators . | . . . . Repair Stations . | . . . . Recycling Units 2 | . . 1 1 Mask 2 | . . 1 1 Scanalyzers 1 | . . 1 . Extract 1 | . . 1 . Garrison Access . | . . . . Data Cores Recovered . | . . . . Used . | . . . . Hacking Detections 18 | . 3 4 11 Full Trace Events 6 | . 2 1 3 Feedback Events . | . . . . Feedback Blocked . | . . . . Robot Schematics Acquired 1 | . 1 . . Robots Built . | . . . . Authchips . | . . . . Time . | . . . . Total Robot Build Rating . | . . . . Part Schematics Acquired 2 | . . 2 . Parts Built . | . . . . Authchips . | . . . . Time . | . . . . Total Part Build Rating . | . . . . Parts Repaired 3 | . . . 3 Time 114 | . . . 114 Parts Recycled . | . . . . Recycled Matter . | . . . . Retrieved Matter . | . . . . Retrieved Components 18 | . . 9 9 Parts Scanalyzed 1 | . . 1 . Part Schematics Acquired 1 | . . 1 . Parts Damaged . | . . . . Bothacking | -11 -10 -9 -8 ------------ Run | Scr Mat Mat Mat Used RIF Installer . | . . . . Robots Hacked . | . . . . Non-combat . | . . . . Combat . | . . . . Robot Hacks Applied . | . . . . Relay Couplers Released 1 | . . . 1 Machine Destruction 1 | . . . 1 Fabnet Peak Effective % . | . . . . Robots Rewired . | . . . . Allies Hacked . | . . . . Hacks Repelled . | . . . . Allies | -11 -10 -9 -8 -------- Run | Scr Mat Mat Mat Total Allies . | . . . . Largest Group . | . . . . Highest-Rated Group . | . . . . Highest-Rated Ally . | . . . . Total Orders . | . . . . Ally Attacks . | . . . . Total Damage . | . . . . Kills . | . . . . Allies Corrupted . | . . . . Allies Melted . | . . . . Intel | -11 -10 -9 -8 ------- Run | Scr Mat Mat Mat Robot Analysis Total 5 | . 2 1 2 Derelict Logs Recovered . | . . . . Drone Launches . | . . . . Drone Recoveries . | . . . . Exploration | -11 -10 -9 -8 ------------- Run | Scr Mat Mat Mat Turns Passed 4345 | 91 459 1007 2788 Spaces Moved 1948 | 50 237 458 1203 Core 2 | 2 . . . Treads 1300 | 48 237 64 951 Legs . | . . . . Wheels 646 | . . 394 252 Hover . | . . . . Flight . | . . . . Fastest Speed 50 | 50 160 145 145 Average Speed 168 | 155 160 155 175 Slowest Speed 235 | 160 160 160 235 Overloaded Moves . | . . . . Propulsion Burnouts . | . . . . Robots Hopped . | . . . . Cave-ins Triggered . | . . . . Exploration Rate (%) 44 | 4 44 39 89 Regions Visited 3 Branch Regions . Pre-discovered Areas . | . . . . Known Exits Taken . | . . . . Unknown Exits Taken 3 | 1 1 1 . Scrap Searched . | . . . . Spaces Dug 32 | . . 21 11 Terrain Destroyed 70 | . . 27 43 Melee 8 | . . . 8 Projectile . | . . . . AOE 62 | . . 27 35 Terrain Rammed . | . . . . Walls Destroyed . | . . . . Machines Disabled . | . . . . Actions | -11 -10 -9 -8 --------- Run | Scr Mat Mat Mat Total 2684 | 60 293 657 1674 Wait 414 | . 14 108 292 Move 1945 | 49 236 457 1203 Hop . | . . . . Pick Up 48 | 5 14 12 17 Fast Attach 20 | 6 2 6 6 Attach 7 | . . 2 5 Detach 5 | . 1 2 2 Swap 31 | . 3 6 22 Drop 37 | . 7 12 18 Fire 162 | . 13 52 97 Melee 9 | . . . 9 Ram . | . . . . Kick . | . . . . Crush 6 | . 3 . 3 Escape Stasis . | . . . . Rewire . | . . . . Trap . | . . . . Miscellaneous . | . . . . Route ------- -11/Scrapyard -10/Materials -9/Materials -8/Materials History --------- Turn | Location | Event 35 | -11/Scrapyard | Discovered new exit (range 15) 92 | -11/Scrapyard | Entered Materials 239 | -10/Materials | Discovered new exit (range 12) 303 | -10/Materials | Build established: Mutant 551 | -10/Materials | Entered another Materials area 551 | -9/Materials | Evolved 2 slots: Utility x2 1204 | -9/Materials | Discovered new exit (range 14) 1483 | -9/Materials | Discovered new exit (range 16) 1558 | -9/Materials | Entered another Materials area 1558 | -8/Materials | Evolved 2 slots: Propulsion x1, Utility x1 1825 | -8/Materials | Discovered new exit (range 16) 1904 | -8/Materials | Repaired Hpw. Shotgun 1985 | -8/Materials | Central database locked down 2621 | -8/Materials | Repaired Hpw. Shotgun 2660 | -8/Materials | Repaired Hpw. Shotgun 3421 | -8/Materials | Discovered new exit (range 5) 4326 | -8/Materials | Garrison activated, responded to threat 4346 | -8/Materials | Self-destructed Last Messages --------------- 04075_ K-01 Serf cleans the Pressure Siphon. 04077_ Acquired 18 matter. 04085_ K-01 Serf cleans the Pressure Siphon. 04296_ K-01 Serf cleans the Matter Filter. 04315_ Critical hit (Burn: +37). 04319_ K-01 Serf destroyed. 04319_ Rnf. Ion Engine destroyed. 04326_ H-61 Shepherd calls for garrison reinforcements. 04326_ ALERT: Activating Garrison Access M001. 04326_ H-61 Shepherd calls for reinforcements. 04326_ ALERT: Hostile activity reported, dispatching reinforcements to area. 04334_ Critical hit (Burn: +37). 04341_ Imp. Light Armor Plating destroyed. 04342_ Critical hit (Burn: +37). 04343_ G-47 Trooper knocked back. 04345_ ALERT: Garrison Access compromised, dispatching assault squad. 04345_ Garrison Access disabled. 04345_ Relay Coupler [Brawler] tumbles out of Garrison Access. 04345_ G-50 Soldier destroyed. Map ----- +----------------------------------------------------+ | + # #????????????? | | #####+#############???????????? | | ## #????####???????????? | | ## #???????????????????? | | ## #???????????????????? | | ## #???????????????????? | | ## #???????????????????? | | ## #????????##?????????? | | ###### #########"#?????????? | | ?????# # #??????????? | | ?????# #### " """"" #??????????? | | #########???### """"" ##?????????? | | #?????????# """"" "#?????????? | | #######???# """"" ###????????? | | = % #???# """"" " #????????? | | ### #???# """"" "##????????? | | ##+#### ##### """"" ##?????????? | | + + % #??????????? | | ^ ^ ###+########+";#########????? | | ^ " # ???#; + #????? | | ^ T # """?## #% """ #????? | | ^^ " # """#?#% Y# gg""" #????? | | # """#?#*% H g """ #????? | | ####### #?# Y%= ! #????? | | ??????#########?# #[ " #????? | | ????????????????# # [ @G" #????? | | ????????????????# # "" #????? | | ????????????????# # #????? | | ????????????????# ##########????? | | ????????????????# #?????????????? | | ????????????????# #?????????????? | | ????????????????# #?????????????? | | ????????????????# ??????????????? | | ####???????????? ??????????????? | | ???????????? ??????????????? | | ?????????????????????????????? | | ?????????????????????????????? | | ###???????????????????????????????? | | ??????????????????????????????????? | | ??????????????????????????????????? | | ??????????????????????????????????? | | ??????????????????????????????????? | | ??????????????????????????????????? | | ??????????????????????????????????? | | ??????????????????????????????????? | | ??????????????????????????????????? | | ??????????????????????????????????? | | ??????????????????????????????????? | | ??????????????????????????????????? | | ??????????????????????????????????? | +----------------------------------------------------+ Best States ------------- Heat Dissipation 31 Energy Generation 12 Energy Capacity 265 Matter Stores 300 Matter Capacity 300 Sight Range 16 Terrain Scan Density 10 Armor Coverage 300 Resistance: TH 10 Propulsion Shielding 33 Evasion (%) 40 Targeting Accuracy 12 Recoil Reduction 3 Offensive Hacking 10 Item Schematics ----------------- Cargo Storage Unit | -9/Materials | Scanalyzed Sml. Storage Unit | -9/Materials | Extracted Robot Schematics ------------------ M-13 Machinist | -10/Materials | Hacked Fabricated ------------ Nothing Alien Tech Used ----------------- None Achievements -------------- None Challenges ------------ Super Gauntlet Game ------ Seed SpreadRecoilLaser Manual? 0 Play Time 00:25:28 Cumulative 1094.0 hours Start 2022.04.03 @ 09:18:00 End 2022.04.03 @ 09:43:34 Sessions 1 Manual Loads 0 Difficulty Rogue Special Mode None Game No. 775 Rogue 771 Adventurer 4 Explorer 0 Win Type - Total 119 Types 91/9/8/5/2/0/0/2/2 Lore% 94 Gallery% 97 Achievement% 97 Wizard Run 0 Options --------- ASCII 0 Keyboard 1 Movement Vi Keybinds 0 Fullscreen 0 Font 16/Terminus Map View 76x50 Tactical HUD 1 Map Filters NONE Filters NONE Steam 1 RUN: 25bb8f95-2cb7-47c8-8eee-f4cb00bbc3ec